[Event "*** Titled Tuesday Blitz"]
[Site "Chess.com"]
[Date "2020.10.27"]
[Round "6"]
[White "zverr1"]
[Black "druskacik"]
[Result "0-1"]
[WhiteElo "2455"]
[BlackElo "2611"]
[TimeControl "180+1"]
[EndTime "11:06:47 PDT"]
[Termination "druskacik won by resignation"]

1. e4 {[%clk 0:03:00.9]} 1... b6 {[%clk 0:01:36.5]} 2. d4 {[%clk 0:02:56.3]}
2... Bb7 {[%clk 0:01:37.4]} 3. Bd3 {[%clk 0:02:56.7]} 3... g6 {[%clk 0:01:34.6]}
4. h4 {[%clk 0:02:48.4]} 4... Bg7 {[%clk 0:01:35.5]} 5. c3 {[%clk 0:02:45]} 5...
h5 {[%clk 0:01:34.7]} 6. Bg5 {[%clk 0:02:41.4]} 6... d6 {[%clk 0:01:32.3]} 7. a4
{[%clk 0:02:34]} 7... a5 {[%clk 0:01:31.7]} 8. Nd2 {[%clk 0:02:31]} 8... Nd7
{[%clk 0:01:29.2]} 9. Ngf3 {[%clk 0:02:24.8]} 9... Ngf6 {[%clk 0:01:28.8]} 10.
Qe2 {[%clk 0:02:22.7]} 10... Nf8 {[%clk 0:01:28.3]} 11. Bb5+ {[%clk 0:02:19.4]}
11... c6 {[%clk 0:01:26.9]} 12. Bd3 {[%clk 0:02:19.2]} 12... Ne6 {[%clk
0:01:26.2]} 13. Be3 {[%clk 0:02:15.1]} 13... Ng4 {[%clk 0:01:24.2]} 14. Ng5
{[%clk 0:02:14.9]} 14... Nxe3 {[%clk 0:01:23.1]} 15. Nxe6 {[%clk 0:02:12.6]}
15... Nxg2+ {[%clk 0:01:22.1]} 16. Kf1 {[%clk 0:02:10.9]} 16... fxe6 {[%clk
0:01:10.3]} 17. Kxg2 {[%clk 0:02:04.6]} 17... Kd7 {[%clk 0:01:08]} 18. e5 {[%clk
0:01:55.3]} 18... d5 {[%clk 0:01:01.1]} 19. b4 {[%clk 0:01:47.2]} 19... Bh6
{[%clk 0:00:57.2]} 20. Nf3 {[%clk 0:01:29.1]} 20... Rg8 {[%clk 0:00:48.2]} 21.
Ng5 {[%clk 0:01:28.1]} 21... Qf8 {[%clk 0:00:44.4]} 22. Qe3 {[%clk 0:01:22.5]}
22... Qg7 {[%clk 0:00:38.9]} 23. Qh3 {[%clk 0:01:17.9]} 23... Bxg5 {[%clk
0:00:38.4]} 24. hxg5 {[%clk 0:01:18.8]} 24... Rgf8 {[%clk 0:00:37.8]} 25. Qg3
{[%clk 0:01:12.4]} 25... Ba6 {[%clk 0:00:30.6]} 26. Bxa6 {[%clk 0:01:09]} 26...
Rxa6 {[%clk 0:00:31.5]} 27. f4 {[%clk 0:01:07.3]} 27... axb4 {[%clk 0:00:29.3]}
28. cxb4 {[%clk 0:01:07]} 28... Rfa8 {[%clk 0:00:30.2]} 29. Qb3 {[%clk
0:00:59.6]} 29... b5 {[%clk 0:00:27.6]} 30. axb5 {[%clk 0:00:57.7]} 30... Rxa1
{[%clk 0:00:20]} 31. bxc6+ {[%clk 0:00:57.5]} 31... Kc7 {[%clk 0:00:19.9]} 32.
Rxa1 {[%clk 0:00:53.3]} 32... Rxa1 {[%clk 0:00:20.8]} 33. b5 {[%clk 0:00:53.8]}
33... Qf8 {[%clk 0:00:18.9]} 34. b6+ {[%clk 0:00:52.7]} 34... Kxc6 {[%clk
0:00:19.8]} 35. Qc3+ {[%clk 0:00:53.2]} 35... Kxb6 {[%clk 0:00:19.9]} 36. Qb2+
{[%clk 0:00:51.1]} 36... Kc6 {[%clk 0:00:19.6]} 37. Qxa1 {[%clk 0:00:47.6]}
37... Qxf4 {[%clk 0:00:20]} 38. Qa4+ {[%clk 0:00:43]} 38... Kc7 {[%clk
0:00:19.2]} 39. Qa7+ {[%clk 0:00:42.6]} 39... Kd8 {[%clk 0:00:20.1]} 40. Qb6+
{[%clk 0:00:38.4]} 40... Kd7 {[%clk 0:00:21]} 41. Qa7+ {[%clk 0:00:38.7]} 41...
Ke8 {[%clk 0:00:21.3]} 42. Kh3 {[%clk 0:00:31]} 42... Kf7 {[%clk 0:00:22.2]} 0-1

[Event "*** Titled Tuesday Blitz"]
[Site "Chess.com"]
[Date "2020.10.27"]
[Round "6"]
[White "davidkalashian"]
[Black "zmeeed67"]
[Result "1-0"]
[WhiteElo "2571"]
[BlackElo "2353"]
[TimeControl "180+1"]
[EndTime "11:06:50 PDT"]
[Termination "davidkalashian won on time"]

1. d4 {[%clk 0:02:59.3]} 1... d5 {[%clk 0:02:57.7]} 2. Nf3 {[%clk 0:02:56.3]}
2... Nf6 {[%clk 0:02:55.7]} 3. c4 {[%clk 0:02:56.7]} 3... e6 {[%clk 0:02:54]} 4.
Nc3 {[%clk 0:02:55.7]} 4... c6 {[%clk 0:02:52.1]} 5. Qd3 {[%clk 0:02:52.2]} 5...
c5 {[%clk 0:02:41]} 6. Bg5 {[%clk 0:02:44.4]} 6... dxc4 {[%clk 0:02:37.2]} 7.
Qxc4 {[%clk 0:02:44]} 7... cxd4 {[%clk 0:02:32.4]} 8. Nxd4 {[%clk 0:02:41.6]}
8... Be7 {[%clk 0:02:30.2]} 9. O-O-O {[%clk 0:02:39.9]} 9... Nbd7 {[%clk
0:02:23.1]} 10. e4 {[%clk 0:02:18]} 10... O-O {[%clk 0:02:13]} 11. f4 {[%clk
0:02:16.8]} 11... Ng4 {[%clk 0:01:49]} 12. Bxe7 {[%clk 0:02:08.5]} 12... Qxe7
{[%clk 0:01:48.3]} 13. Qe2 {[%clk 0:02:09.4]} 13... Nh6 {[%clk 0:01:36.4]} 14.
g4 {[%clk 0:02:07.6]} 14... e5 {[%clk 0:01:35]} 15. Nd5 {[%clk 0:01:51.8]} 15...
Qc5+ {[%clk 0:01:33.7]} 16. Nc2 {[%clk 0:01:52.3]} 16... Nb6 {[%clk 0:01:13.9]}
17. h3 {[%clk 0:01:42.2]} 17... f6 {[%clk 0:00:56.5]} 18. g5 {[%clk 0:01:32]}
18... fxg5 {[%clk 0:00:54.5]} 19. fxg5 {[%clk 0:01:32.9]} 19... Nf7 {[%clk
0:00:53.6]} 20. h4 {[%clk 0:01:29.5]} 20... Be6 {[%clk 0:00:49.9]} 21. Bh3
{[%clk 0:01:25.6]} 21... Bxh3 {[%clk 0:00:35.3]} 22. Rxh3 {[%clk 0:01:26.5]}
22... Rfd8 {[%clk 0:00:29.6]} 23. Rc3 {[%clk 0:01:23.4]} 23... Qa5 {[%clk
0:00:20.1]} 24. Ra3 {[%clk 0:01:11.2]} 24... Qc5 {[%clk 0:00:18.9]} 25. Qe3
{[%clk 0:01:08.4]} 25... Qf8 {[%clk 0:00:14.9]} 26. Rad3 {[%clk 0:01:00.4]}
26... Nc4 {[%clk 0:00:13.8]} 27. Qe2 {[%clk 0:00:52.7]} 27... Rac8 {[%clk
0:00:10.5]} 28. Kb1 {[%clk 0:00:52.7]} 28... Nfd6 {[%clk 0:00:09.6]} 29. h5
{[%clk 0:00:44.9]} 29... a6 {[%clk 0:00:06.5]} 30. h6 {[%clk 0:00:44.4]} 30...
b5 {[%clk 0:00:05.7]} 31. hxg7 {[%clk 0:00:38.6]} 31... Qxg7 {[%clk 0:00:05.5]}
32. Nf6+ {[%clk 0:00:32.6]} 32... Kh8 {[%clk 0:00:05.2]} 33. Rh1 {[%clk
0:00:28.6]} 1-0

[Event "*** Titled Tuesday Blitz"]
[Site "Chess.com"]
[Date "2020.10.27"]
[Round "6"]
[White "Samantha_Ross"]
[Black "Yoshikrov"]
[Result "0-1"]
[WhiteElo "2305"]
[BlackElo "2144"]
[TimeControl "180+1"]
[EndTime "11:06:50 PDT"]
[Termination "Yoshikrov won by checkmate"]

1. e3 {[%clk 0:02:58.3]} 1... d5 {[%clk 0:02:59.4]} 2. Nf3 {[%clk 0:02:59.2]}
2... Nf6 {[%clk 0:02:59.3]} 3. c4 {[%clk 0:02:56.5]} 3... g6 {[%clk 0:02:57.6]}
4. b3 {[%clk 0:02:56.7]} 4... Bg7 {[%clk 0:02:57.6]} 5. Bb2 {[%clk 0:02:57.4]}
5... O-O {[%clk 0:02:49.4]} 6. Be2 {[%clk 0:02:56.5]} 6... c5 {[%clk 0:02:48]}
7. cxd5 {[%clk 0:02:56.8]} 7... Nxd5 {[%clk 0:02:33.4]} 8. Bxg7 {[%clk
0:02:57.7]} 8... Kxg7 {[%clk 0:02:33.8]} 9. a3 {[%clk 0:02:58.6]} 9... Nc6
{[%clk 0:02:32.4]} 10. Qc2 {[%clk 0:02:58.8]} 10... Qb6 {[%clk 0:02:14.1]} 11.
d3 {[%clk 0:02:48.3]} 11... Bd7 {[%clk 0:02:00.2]} 12. O-O {[%clk 0:02:47.5]}
12... Rac8 {[%clk 0:01:59.6]} 13. Nbd2 {[%clk 0:02:47.3]} 13... Kg8 {[%clk
0:01:30.4]} 14. Rfc1 {[%clk 0:02:46.1]} 14... Na5 {[%clk 0:01:26.9]} 15. Nc4
{[%clk 0:02:36.8]} 15... Nxc4 {[%clk 0:01:22.7]} 16. bxc4 {[%clk 0:02:32.6]}
16... Nf6 {[%clk 0:01:21.1]} 17. Rcb1 {[%clk 0:02:29.1]} 17... Qc7 {[%clk
0:01:20.9]} 18. Qb2 {[%clk 0:02:28]} 18... b6 {[%clk 0:01:19.2]} 19. Ne5 {[%clk
0:02:26.5]} 19... Be6 {[%clk 0:01:10.6]} 20. a4 {[%clk 0:02:26.4]} 20... Nd7
{[%clk 0:01:03]} 21. Nxd7 {[%clk 0:02:25.4]} 21... Bxd7 {[%clk 0:00:57]} 22. a5
{[%clk 0:02:26.3]} 22... bxa5 {[%clk 0:00:57]} 23. Qb7 {[%clk 0:02:18.9]} 23...
a4 {[%clk 0:00:42]} 24. h3 {[%clk 0:02:13.4]} 24... Bc6 {[%clk 0:00:42]} 25. Qa6
{[%clk 0:01:54.4]} 25... Rb8 {[%clk 0:00:38.1]} 26. Bd1 {[%clk 0:01:50.1]} 26...
Rb6 {[%clk 0:00:28.4]} 27. Qa5 {[%clk 0:01:10.2]} 27... Rxb1 {[%clk 0:00:18.5]}
28. Qxc7 {[%clk 0:01:11]} 28... Rxa1 {[%clk 0:00:18.7]} 29. Qxc6 {[%clk
0:01:10.3]} 29... Rxd1+ {[%clk 0:00:18.7]} 30. Kh2 {[%clk 0:01:11.2]} 30... a3
{[%clk 0:00:19.1]} 31. Qxc5 {[%clk 0:01:09.9]} 31... a2 {[%clk 0:00:19.4]} 32.
Qxa7 {[%clk 0:01:08.3]} 32... a1=Q {[%clk 0:00:19.4]} 33. Qxe7 {[%clk
0:01:09.2]} 33... Qa8 {[%clk 0:00:17.4]} 34. d4 {[%clk 0:01:05.8]} 34... Qb8+
{[%clk 0:00:17.5]} 35. g3 {[%clk 0:01:04.2]} 35... Re8 {[%clk 0:00:17.6]} 36.
Qf6 {[%clk 0:01:03.7]} 36... Qb1 {[%clk 0:00:15.9]} 37. g4 {[%clk 0:00:55.7]}
37... Rh1+ {[%clk 0:00:15.8]} 38. Kg3 {[%clk 0:00:56.2]} 38... Qg1+ {[%clk
0:00:15.8]} 39. Kh4 {[%clk 0:00:56.2]} 39... Rh2 {[%clk 0:00:14.9]} 40. Qc6
{[%clk 0:00:53.3]} 40... Qxf2+ {[%clk 0:00:14.8]} 41. Kg5 {[%clk 0:00:53.4]}
41... Qxe3+ {[%clk 0:00:14.9]} 42. Kf6 {[%clk 0:00:51.4]} 42... Re6+ {[%clk
0:00:15]} 43. Qxe6 {[%clk 0:00:51.3]} 43... Qxe6+ {[%clk 0:00:15.9]} 44. Kg5
{[%clk 0:00:52.2]} 44... Rxh3 {[%clk 0:00:15.6]} 45. d5 {[%clk 0:00:51.2]} 45...
h6+ {[%clk 0:00:16.5]} 46. Kf4 {[%clk 0:00:50.4]} 46... Qe3# {[%clk 0:00:17.4]}
0-1

[Event "*** Titled Tuesday Blitz"]
[Site "Chess.com"]
[Date "2020.10.27"]
[Round "6"]
[White "katchesskat"]
[Black "gui_borba"]
[Result "0-1"]
[WhiteElo "2243"]
[BlackElo "2457"]
[TimeControl "180+1"]
[EndTime "11:06:55 PDT"]
[Termination "gui_borba won on time"]

1. c4 {[%clk 0:03:00.9]} 1... e5 {[%clk 0:02:59.7]} 2. e3 {[%clk 0:03:00.4]}
2... Nf6 {[%clk 0:02:59.5]} 3. a3 {[%clk 0:03:00.9]} 3... Nc6 {[%clk 0:02:59]}
4. b4 {[%clk 0:03:00.2]} 4... g6 {[%clk 0:02:58.6]} 5. Bb2 {[%clk 0:02:59.5]}
5... d6 {[%clk 0:02:58.7]} 6. b5 {[%clk 0:02:56.5]} 6... Ne7 {[%clk 0:02:58.3]}
7. h4 {[%clk 0:02:55.8]} 7... Bg7 {[%clk 0:02:58.4]} 8. Be2 {[%clk 0:02:56]}
8... h5 {[%clk 0:02:56.3]} 9. Qc2 {[%clk 0:02:55.4]} 9... O-O {[%clk 0:02:53.4]}
10. d3 {[%clk 0:02:55]} 10... c6 {[%clk 0:02:53.7]} 11. a4 {[%clk 0:02:54.4]}
11... Nf5 {[%clk 0:02:43.5]} 12. Nf3 {[%clk 0:02:54]} 12... Re8 {[%clk
0:02:42.1]} 13. Nbd2 {[%clk 0:02:52.9]} 13... Ng4 {[%clk 0:02:33.3]} 14. bxc6
{[%clk 0:02:48.5]} 14... bxc6 {[%clk 0:02:32]} 15. Ng5 {[%clk 0:02:37.6]} 15...
d5 {[%clk 0:02:24.1]} 16. Bxg4 {[%clk 0:02:34.9]} 16... hxg4 {[%clk 0:02:24.2]}
17. cxd5 {[%clk 0:02:30.5]} 17... cxd5 {[%clk 0:02:25.1]} 18. e4 {[%clk
0:02:24.4]} 18... Nd4 {[%clk 0:02:20.6]} 19. Bxd4 {[%clk 0:02:20.3]} 19... exd4
{[%clk 0:02:21.5]} 20. Qc6 {[%clk 0:02:17.6]} 20... Rb8 {[%clk 0:02:13.5]} 21.
O-O {[%clk 0:02:05.2]} 21... Bb7 {[%clk 0:02:01.7]} 22. Qc5 {[%clk 0:02:00.4]}
22... Qb6 {[%clk 0:01:46.3]} 23. Qxb6 {[%clk 0:01:57]} 23... axb6 {[%clk
0:01:47.2]} 24. exd5 {[%clk 0:01:56]} 24... Bxd5 {[%clk 0:01:46.9]} 25. Nge4
{[%clk 0:01:49.8]} 25... Rec8 {[%clk 0:01:41.2]} 26. g3 {[%clk 0:01:49.2]} 26...
Rc2 {[%clk 0:01:40.3]} 27. Rfc1 {[%clk 0:01:43.3]} 27... Rbc8 {[%clk 0:01:40.6]}
28. Rxc2 {[%clk 0:01:42.5]} 28... Rxc2 {[%clk 0:01:41.5]} 29. Rd1 {[%clk
0:01:18.1]} 29... Ra2 {[%clk 0:01:40.6]} 30. Nd6 {[%clk 0:01:11.5]} 30... Rxa4
{[%clk 0:01:34.9]} 31. Nc8 {[%clk 0:01:11.3]} 31... Be6 {[%clk 0:01:15]} 32.
Nxb6 {[%clk 0:01:10.6]} 32... Rb4 {[%clk 0:01:15]} 33. Nbc4 {[%clk 0:01:09.6]}
33... Bh6 {[%clk 0:01:15.2]} 34. Ne5 {[%clk 0:01:04.1]} 34... Bd5 {[%clk
0:01:07.6]} 35. Nxg4 {[%clk 0:00:45]} 35... Bxd2 {[%clk 0:01:06.8]} 36. Nf6+
{[%clk 0:00:45.1]} 36... Kg7 {[%clk 0:01:01]} 37. Nxd5 {[%clk 0:00:44.9]} 37...
Rb2 {[%clk 0:01:01.1]} 38. Kg2 {[%clk 0:00:33.8]} 38... f5 {[%clk 0:01:00.6]}
39. Kf3 {[%clk 0:00:33.4]} 39... Kf7 {[%clk 0:01:01.1]} 40. Ra1 {[%clk
0:00:28.2]} 40... Ke6 {[%clk 0:00:57.7]} 41. Nc7+ {[%clk 0:00:25.9]} 41... Kd6
{[%clk 0:00:55.8]} 42. Ne8+ {[%clk 0:00:15.9]} 42... Ke7 {[%clk 0:00:53.5]} 43.
Nc7 {[%clk 0:00:11.3]} 43... Kd7 {[%clk 0:00:52.9]} 44. Na6 {[%clk 0:00:08.2]}
44... Kc6 {[%clk 0:00:48.1]} 0-1

[Event "*** Titled Tuesday Blitz"]
[Site "Chess.com"]
[Date "2020.10.27"]
[Round "6"]
[White "Paladin61"]
[Black "mapleaff"]
[Result "1-0"]
[WhiteElo "2604"]
[BlackElo "2399"]
[TimeControl "180+1"]
[EndTime "11:06:56 PDT"]
[Termination "Paladin61 won by checkmate"]

1. b3 {[%clk 0:03:00.4]} 1... e6 {[%clk 0:02:57.4]} 2. Bb2 {[%clk 0:03:01.3]}
2... Nf6 {[%clk 0:02:56.6]} 3. g3 {[%clk 0:03:00.7]} 3... h5 {[%clk 0:02:55.9]}
4. Nf3 {[%clk 0:02:59.9]} 4... Be7 {[%clk 0:02:53.2]} 5. Bg2 {[%clk 0:02:57.3]}
5... b6 {[%clk 0:02:53.2]} 6. Ne5 {[%clk 0:02:32.2]} 6... c6 {[%clk 0:02:49.4]}
7. h3 {[%clk 0:02:28.7]} 7... Bb7 {[%clk 0:02:47.8]} 8. d4 {[%clk 0:02:20.7]}
8... Qc8 {[%clk 0:02:44.6]} 9. c4 {[%clk 0:02:03.7]} 9... Qc7 {[%clk 0:02:19.4]}
10. Nc3 {[%clk 0:02:01]} 10... a6 {[%clk 0:02:13.9]} 11. O-O {[%clk 0:01:49.9]}
11... d6 {[%clk 0:02:08]} 12. Nd3 {[%clk 0:01:48.5]} 12... Nbd7 {[%clk
0:02:07.8]} 13. e4 {[%clk 0:01:43.9]} 13... c5 {[%clk 0:01:53.4]} 14. d5 {[%clk
0:01:41.3]} 14... exd5 {[%clk 0:01:42.5]} 15. exd5 {[%clk 0:01:30.7]} 15...
O-O-O {[%clk 0:01:28.9]} 16. Qd2 {[%clk 0:01:19.6]} 16... Nf8 {[%clk 0:01:09.8]}
17. Rfe1 {[%clk 0:01:11.2]} 17... Ng6 {[%clk 0:01:08.1]} 18. a4 {[%clk
0:01:06.6]} 18... Rde8 {[%clk 0:00:56.7]} 19. a5 {[%clk 0:01:05.4]} 19... Bd8
{[%clk 0:00:56.7]} 20. axb6 {[%clk 0:00:59.7]} 20... Qxb6 {[%clk 0:00:56.5]} 21.
Na4 {[%clk 0:00:53.4]} 21... Rxe1+ {[%clk 0:00:47.8]} 22. Rxe1 {[%clk 0:00:51]}
22... Qxb3 {[%clk 0:00:48]} 23. Naxc5 {[%clk 0:00:46.8]} 23... dxc5 {[%clk
0:00:37.9]} 24. Nxc5 {[%clk 0:00:47.7]} 24... Qb6 {[%clk 0:00:19.3]} 25. Bd4
{[%clk 0:00:47.3]} 25... Qa5 {[%clk 0:00:18]} 26. Qd1 {[%clk 0:00:27.7]} 26...
h4 {[%clk 0:00:14.8]} 27. g4 {[%clk 0:00:26.8]} 27... Nf4 {[%clk 0:00:13.9]} 28.
Bf1 {[%clk 0:00:25.2]} 28... Bb6 {[%clk 0:00:09.6]} 29. Nxb7 {[%clk 0:00:16.5]}
29... Kxb7 {[%clk 0:00:10.5]} 30. Qb3 {[%clk 0:00:16.3]} 30... Ka7 {[%clk
0:00:07.2]} 31. Ra1 {[%clk 0:00:14]} 31... Qxa1 {[%clk 0:00:03.9]} 32. Qxb6+
{[%clk 0:00:12.5]} 32... Ka8 {[%clk 0:00:03.7]} 33. Qa7# {[%clk 0:00:12.7]} 1-0

[Event "*** Titled Tuesday Blitz"]
[Site "Chess.com"]
[Date "2020.10.27"]
[Round "6"]
[White "Qvalda"]
[Black "totoro9"]
[Result "1-0"]
[WhiteElo "2384"]
[BlackElo "2261"]
[TimeControl "180+1"]
[EndTime "11:06:57 PDT"]
[Termination "Qvalda won on time"]

1. e4 {[%clk 0:03:00.9]} 1... c5 {[%clk 0:02:59.2]} 2. Nf3 {[%clk 0:02:57.8]}
2... d6 {[%clk 0:02:59.4]} 3. b4 {[%clk 0:02:56.2]} 3... cxb4 {[%clk 0:02:58.4]}
4. d4 {[%clk 0:02:53.5]} 4... Nf6 {[%clk 0:02:55.4]} 5. Bd3 {[%clk 0:02:53]}
5... Nc6 {[%clk 0:02:51.9]} 6. O-O {[%clk 0:02:49.9]} 6... Bg4 {[%clk
0:02:51.2]} 7. d5 {[%clk 0:02:42.2]} 7... Ne5 {[%clk 0:02:49.8]} 8. Nxe5 {[%clk
0:02:32.8]} 8... dxe5 {[%clk 0:02:43.1]} 9. f3 {[%clk 0:02:12.5]} 9... Bd7
{[%clk 0:02:40.7]} 10. Bb2 {[%clk 0:02:12.3]} 10... Qc7 {[%clk 0:02:38]} 11. Nd2
{[%clk 0:02:03.7]} 11... e6 {[%clk 0:02:37.4]} 12. Nc4 {[%clk 0:01:44]} 12...
Bc5+ {[%clk 0:02:32.4]} 13. Kh1 {[%clk 0:01:43.4]} 13... Bd4 {[%clk 0:02:33.3]}
14. Bxd4 {[%clk 0:01:35.5]} 14... exd4 {[%clk 0:02:32]} 15. d6 {[%clk
0:01:34.6]} 15... Qc5 {[%clk 0:02:29.9]} 16. e5 {[%clk 0:01:33.8]} 16... Nd5
{[%clk 0:02:28]} 17. Qe2 {[%clk 0:01:22.4]} 17... Ne3 {[%clk 0:02:26.2]} 18.
Nxe3 {[%clk 0:01:20.3]} 18... dxe3 {[%clk 0:02:26.1]} 19. f4 {[%clk 0:01:21.2]}
19... f6 {[%clk 0:01:21.8]} 20. Qh5+ {[%clk 0:01:09.3]} 20... Kf8 {[%clk
0:01:06.3]} 21. Rae1 {[%clk 0:00:51.3]} 21... Bc6 {[%clk 0:00:30.7]} 22. Qh3
{[%clk 0:00:40.7]} 22... f5 {[%clk 0:00:29.2]} 23. Rxe3 {[%clk 0:00:33.8]} 23...
h5 {[%clk 0:00:25.5]} 24. Qh4 {[%clk 0:00:29.2]} 24... Qxe3 {[%clk 0:00:24.7]}
25. Qe7+ {[%clk 0:00:25.8]} 25... Kg8 {[%clk 0:00:24.9]} 26. Qxe6+ {[%clk
0:00:26.3]} 26... Kf8 {[%clk 0:00:22.2]} 27. Qxf5+ {[%clk 0:00:17.7]} 27... Ke8
{[%clk 0:00:17]} 28. Qe6+ {[%clk 0:00:17.7]} 28... Kf8 {[%clk 0:00:13.7]} 29.
Bc4 {[%clk 0:00:12]} 29... Bxg2+ {[%clk 0:00:04.7]} 30. Kxg2 {[%clk 0:00:12.9]}
30... Qe4+ {[%clk 0:00:05]} 31. Rf3 {[%clk 0:00:12.2]} 31... Qxc2+ {[%clk
0:00:05]} 32. Kh3 {[%clk 0:00:10.7]} 1-0

[Event "*** Titled Tuesday Blitz"]
[Site "Chess.com"]
[Date "2020.10.27"]
[Round "6"]
[White "topotun"]
[Black "chenxiaoyuer"]
[Result "1-0"]
[WhiteElo "2761"]
[BlackElo "2511"]
[TimeControl "180+1"]
[EndTime "11:06:58 PDT"]
[Termination "topotun won by checkmate"]

1. e4 {[%clk 0:03:00.9]} 1... c5 {[%clk 0:02:58.7]} 2. Nf3 {[%clk 0:03:01.3]}
2... d6 {[%clk 0:02:58.6]} 3. d4 {[%clk 0:03:01.2]} 3... cxd4 {[%clk 0:02:59.5]}
4. Nxd4 {[%clk 0:03:02.1]} 4... Nf6 {[%clk 0:02:57]} 5. f3 {[%clk 0:03:02.4]}
5... e5 {[%clk 0:02:53.8]} 6. Nb3 {[%clk 0:03:02.5]} 6... d5 {[%clk 0:02:52.5]}
7. Bg5 {[%clk 0:03:02.3]} 7... Be6 {[%clk 0:02:48.5]} 8. Bxf6 {[%clk 0:03:02]}
8... gxf6 {[%clk 0:02:47.3]} 9. exd5 {[%clk 0:03:02.3]} 9... Qxd5 {[%clk
0:02:46.3]} 10. Qxd5 {[%clk 0:03:02.3]} 10... Bxd5 {[%clk 0:02:47.2]} 11. Nc3
{[%clk 0:03:03.1]} 11... Be6 {[%clk 0:02:42.9]} 12. O-O-O {[%clk 0:03:03.1]}
12... Nc6 {[%clk 0:02:39.8]} 13. Bb5 {[%clk 0:02:32.1]} 13... Rc8 {[%clk
0:02:28.2]} 14. Na5 {[%clk 0:01:57.2]} 14... a6 {[%clk 0:02:26.9]} 15. Bxc6+
{[%clk 0:01:35.5]} 15... bxc6 {[%clk 0:02:25.5]} 16. Ne4 {[%clk 0:01:35.5]}
16... f5 {[%clk 0:02:04.4]} 17. Nd6+ {[%clk 0:01:24.2]} 17... Bxd6 {[%clk
0:02:02]} 18. Rxd6 {[%clk 0:01:25.1]} 18... Bd5 {[%clk 0:01:58.2]} 19. Re1
{[%clk 0:00:59]} 19... Ke7 {[%clk 0:01:49]} 20. Rh6 {[%clk 0:00:59.1]} 20... f6
{[%clk 0:01:47.3]} 21. c4 {[%clk 0:00:54.7]} 21... Bf7 {[%clk 0:01:45]} 22. f4
{[%clk 0:00:41.2]} 22... e4 {[%clk 0:01:42.6]} 23. Nb3 {[%clk 0:00:31]} 23...
Bxc4 {[%clk 0:01:38.8]} 24. Nd4 {[%clk 0:00:30.8]} 24... Be6 {[%clk 0:01:34.9]}
25. g4 {[%clk 0:00:26.5]} 25... c5 {[%clk 0:01:26.5]} 26. Nxf5+ {[%clk
0:00:24.7]} 26... Bxf5 {[%clk 0:01:24.8]} 27. gxf5 {[%clk 0:00:25.6]} 27... Kf7
{[%clk 0:01:19.6]} 28. Rxe4 {[%clk 0:00:26.5]} 28... Kg7 {[%clk 0:01:19.8]} 29.
Rh3 {[%clk 0:00:26.3]} 29... Rhe8 {[%clk 0:01:20.4]} 30. Rhe3 {[%clk 0:00:21.6]}
30... Rxe4 {[%clk 0:01:18.9]} 31. Rxe4 {[%clk 0:00:22.5]} 31... Rg8 {[%clk
0:01:15.4]} 32. Re7+ {[%clk 0:00:19.2]} 32... Kf8 {[%clk 0:01:12.4]} 33. Rxh7
{[%clk 0:00:18.9]} 33... Rg1+ {[%clk 0:01:12.8]} 34. Kc2 {[%clk 0:00:19.3]}
34... Rg2+ {[%clk 0:01:13.7]} 35. Kc3 {[%clk 0:00:19.8]} 35... Rf2 {[%clk
0:01:14.2]} 36. Rc7 {[%clk 0:00:16.9]} 36... Rf3+ {[%clk 0:01:07.9]} 37. Kc2
{[%clk 0:00:16.6]} 37... Rf2+ {[%clk 0:01:06.3]} 38. Kb3 {[%clk 0:00:14.5]}
38... Rxf4 {[%clk 0:01:04]} 39. Rxc5 {[%clk 0:00:14.1]} 39... Rf2 {[%clk
0:01:03.7]} 40. Rc6 {[%clk 0:00:10.6]} 40... Rxh2 {[%clk 0:01:03.2]} 41. Rxf6+
{[%clk 0:00:10.4]} 41... Ke7 {[%clk 0:01:04]} 42. Rxa6 {[%clk 0:00:11.3]} 42...
Kd7 {[%clk 0:01:04.1]} 43. Ra4 {[%clk 0:00:10.3]} 43... Rf2 {[%clk 0:01:04.3]}
44. Ra5 {[%clk 0:00:10.2]} 44... Kc6 {[%clk 0:01:04.2]} 45. Ka3 {[%clk
0:00:10.1]} 45... Kb6 {[%clk 0:01:03.6]} 46. b4 {[%clk 0:00:11]} 46... Rf3+
{[%clk 0:01:03.3]} 47. Ka4 {[%clk 0:00:11.5]} 47... Rf2 {[%clk 0:01:03.2]} 48.
a3 {[%clk 0:00:12.2]} 48... Rf3 {[%clk 0:01:04.1]} 49. Rb5+ {[%clk 0:00:12.5]}
49... Ka6 {[%clk 0:01:03.5]} 50. Rc5 {[%clk 0:00:13.4]} 50... Rd3 {[%clk
0:01:02.6]} 51. Re5 {[%clk 0:00:13.1]} 51... Rf3 {[%clk 0:01:03]} 52. Re6+
{[%clk 0:00:13.4]} 52... Ka7 {[%clk 0:01:03.6]} 53. f6 {[%clk 0:00:14.3]} 53...
Rf4 {[%clk 0:01:03.5]} 54. Ka5 {[%clk 0:00:14.1]} 54... Rf5+ {[%clk 0:01:02.5]}
55. b5 {[%clk 0:00:14.3]} 55... Kb7 {[%clk 0:01:03.4]} 56. a4 {[%clk 0:00:14]}
56... Rf4 {[%clk 0:01:01.3]} 57. Re7+ {[%clk 0:00:14.2]} 57... Kc8 {[%clk
0:01:01.1]} 58. f7 {[%clk 0:00:15.1]} 58... Kd8 {[%clk 0:01:00.8]} 59. Re8+
{[%clk 0:00:15.4]} 59... Kc7 {[%clk 0:01:01.7]} 60. f8=Q {[%clk 0:00:16.3]}
60... Rxf8 {[%clk 0:01:02.3]} 61. Rxf8 {[%clk 0:00:17.2]} 61... Kb7 {[%clk
0:01:03.1]} 62. Rf7+ {[%clk 0:00:17.7]} 62... Kb8 {[%clk 0:01:04]} 63. Kb6
{[%clk 0:00:18.4]} 63... Ka8 {[%clk 0:01:04.9]} 64. Rf8# {[%clk 0:00:18.5]} 1-0